fUST/lending_fUST_20250731
["ID","MTS","AMOUNT","RATE_DAILY","PERIOD"]
[376204144,1753893036196,-460.0,0.00020316,2]
[376204145,1753893036205,-460.0,0.00020316,2]
[376204146,1753893036214,-575.48346012,0.00020316,2]
[376204147,1753893036223,-485.96793181,0.00020316,2]
[376204148,1753893036232,-460.0,0.00020316,2]
[376204149,1753893036242,-460.0,0.00020316,2]
[376204150,1753893036251,-460.0,0.00020316,2]
[376204151,1753893036260,-460.0,0.00020316,2]
[376204152,1753893036270,-460.0,0.00020316,2]
[376204153,1753893036279,-464.89380412,0.00020316,2]
[376204154,1753893036288,-460.0,0.00020316,2]
[376204155,1753893036297,-460.0,0.00020316,2]
[376204156,1753893036307,-460.0,0.00020316,2]
[376204157,1753893036316,-460.0,0.00020316,2]
[376204158,1753893036325,-460.0,0.00020316,2]
[376204159,1753893036335,-460.0,0.00020316,2]
[376204160,1753893036344,-460.0,0.00020316,2]
[376204161,1753893036354,-462.34368805,0.00020316,2]
[376204162,1753893036363,-463.49769264,0.00020316,2]
[376204163,1753893036372,-578.3388043,0.00020316,2]
[376204164,1753893036382,-460.0,0.00020316,2]
[376204165,1753893036391,-460.0,0.00020316,2]
[376204166,1753893036400,-262.29962447,0.00020316,2]
[376204167,1753893036409,-305.8984454,0.00020316,2]
[376204168,1753893036418,-460.0,0.00020316,2]
[376204169,1753893036427,-462.16852898,0.00020316,2]
[376204170,1753893036437,-460.0,0.00020316,2]
[376204171,1753893036447,-436.50300604,0.00020316,2]
[376204172,1753893036456,-460.0,0.00020316,2]
[376204173,1753893036465,-460.0,0.00020316,2]
[376204174,1753893036474,-460.0,0.00020316,2]
[376204175,1753893036483,-460.0,0.00020316,2]
[376204176,1753893036492,-558.50960345,0.00020316,2]
[376204177,1753893036502,-460.0,0.00020316,2]
[376204178,1753893036511,-460.0,0.00020316,2]
[376204179,1753893036520,-460.0,0.00020316,2]
[376204180,1753893036530,-460.0,0.00020316,2]
[376204181,1753893036539,-460.0,0.00020316,2]
[376204182,1753893036548,-295.66129166,0.00020316,2]
[376204183,1753893036558,-460.0,0.00020316,2]
[376204184,1753893036567,-460.0,0.00020316,2]
[376204185,1753893036576,-378.79318451,0.00020316,2]
[376204186,1753893036586,-461.28143089,0.00020316,2]
[376204187,1753893036595,-199.04713453,0.00020316,2]
[376204188,1753893036604,-460.0,0.00020316,2]
[376204189,1753893036613,-151.0,0.00020316,2]
[376204190,1753893036622,-460.0,0.00020316,2]
[376204191,1753893036632,-460.0,0.00020316,2]
[376204192,1753893036640,-460.0,0.00020316,2]
[376204193,1753893036649,-460.0,0.00020316,2]
[376204194,1753893036658,-460.0,0.00020316,2]
[376204195,1753893036667,-390.75624519,0.00020316,2]
[376204196,1753893036676,-460.0,0.00020316,2]
[376204197,1753893036688,-460.0,0.00020316,2]
[376204198,1753893036697,-462.24743105,0.00020316,2]
[376204199,1753893036706,-460.0,0.00020316,2]
[376204200,1753893036715,-463.20317747,0.00020316,2]
[376204201,1753893036725,-460.0,0.00020316,2]
[376204202,1753893036734,-460.0,0.00020316,2]
[376204203,1753893036742,-461.03477258,0.00020316,2]
[376204204,1753893036751,-460.0,0.00020316,2]
[376204205,1753893036761,-460.0,0.00020316,2]
[376204206,1753893036770,-461.77275098,0.00020316,2]
[376204207,1753893036779,-460.0,0.00020316,2]
[376204208,1753893036787,-460.0,0.00020316,2]
[376204209,1753893036796,-460.0,0.00020316,2]
[376204210,1753893036805,-462.74924937,0.00020316,2]
[376204211,1753893036814,-461.52856998,0.00020316,2]
[376204212,1753893036823,-460.0,0.00020316,2]
[376204213,1753893036832,-460.0,0.00020316,2]
[376204214,1753893036841,-460.0,0.00020316,2]
[376204215,1753893036850,-460.0,0.00020316,2]
[376204216,1753893036860,-460.0,0.00020316,2]
[376204217,1753893036869,-460.0,0.00020316,2]
[376204218,1753893036879,-460.0,0.00020316,2]
[376204219,1753893036888,-465.92768651,0.00020316,2]
[376204220,1753893036896,-461.56845937,0.00020316,2]
[376204221,1753893036906,-460.0,0.00020316,2]
[376204222,1753893036915,-925.4,0.00020316,2]
[376204223,1753893036924,-460.0,0.00020316,2]
[376204224,1753893036933,-460.0,0.00020316,2]
[376204225,1753893036942,-151.0,0.00020316,2]
[376204226,1753893036951,-460.0,0.00020316,2]
[376204227,1753893036960,-460.0,0.00020316,2]
[376204228,1753893036969,-151.0,0.00020316,2]
[376204229,1753893036978,-151.0,0.00020316,2]
[376204230,1753893036986,-404.20598547,0.00020316,2]
[376204231,1753893036995,-151.0,0.00020316,2]
[376204232,1753893037004,-151.0,0.00020316,2]
[376204233,1753893037013,-245.0,0.00020316,2]
[376204234,1753893037022,-278.65398212,0.00020316,2]
[376204235,1753893037031,-151.0,0.00020316,2]
[376204236,1753893037039,-272.38218103,0.00020316,2]
[376204237,1753893037048,-460.0,0.00020316,2]
[376204238,1753893037057,-462.35983748,0.00020316,2]
[376204239,1753893037066,-63.48758439,0.00020316,2]
[376204240,1753893037081,-87.51241561,0.00020316,2]
[376204241,1753893037089,-460.0,0.00020316,2]
[376204242,1753893037098,-162.66138441,0.00020316,2]
[376204243,1753893037110,-298.06710029,0.00020316,2]
[376204244,1753893037123,-97.11713917,0.00020316,2]
[376204245,1753893037140,-362.88286083,0.00020316,2]
[376204246,1753893037153,-460.0,0.00020316,2]
[376204247,1753893037165,-460.0,0.00020316,2]
[376204248,1753893037177,-462.68828021,0.00020316,2]
[376204249,1753893037187,-455.75332861,0.00020316,2]
[376204250,1753893037203,-46.40864604,0.00020316,2]
[376204251,1753893037214,-460.0,0.00020316,2]
[376204252,1753893037225,-460.0,0.00020316,2]
[376204253,1753893037238,-460.0,0.00020316,2]
[376204254,1753893037250,-373.81901445,0.00020316,2]
[376204289,1753893038469,-460.0,0.00019999,2]
[376204292,1753893038482,-460.0,0.00020273,2]
[376204294,1753893038495,-86.18098555,0.00020316,2]
[376204296,1753893038506,-460.0,0.00020316,2]
[376204299,1753893038519,-461.18412538,0.00020316,2]
[376204301,1753893038531,-460.0,0.00020316,2]
[376204303,1753893038543,-460.0,0.00020316,2]
[376204306,1753893038556,-460.0,0.00020316,2]
[376204308,1753893038567,-460.0,0.00020316,2]
[376204310,1753893038578,-460.0,0.00020316,2]
[376204312,1753893038588,-460.0,0.00020316,2]
[376204314,1753893038599,-460.0,0.00020316,2]
[376204316,1753893038610,-113.74291536,0.00020316,2]
[376204321,1753893038642,-151.0,0.00020315,2]
[376204323,1753893038655,-348.51906548,0.00020316,2]
[376204326,1753893038667,-466.99937723,0.00020316,2]
[376204328,1753893038677,-370.45227765,0.00020316,2]
[376204330,1753893038691,-439.1386516,0.00020316,2]
[376204332,1753893038703,-153.57571302,0.00020316,2]
[376204503,1753893040276,-151.0,0.00020315,2]
[376204505,1753893040287,-306.42428698,0.00020316,2]
[376204507,1753893040298,-62.49221262,0.00020316,2]
[376204512,1753893040331,-397.50778738,0.00020316,2]
[376204514,1753893040342,-460.0,0.00020316,2]
[376204516,1753893040353,-460.0,0.00020316,2]
[376204518,1753893040365,-460.0,0.00020316,2]
[376204520,1753893040377,-460.0,0.00020316,2]
[376204522,1753893040388,-460.0,0.00020316,2]
[376204524,1753893040399,-460.0,0.00020316,2]
[376204525,1753893040410,-460.0,0.00020316,2]
[376204526,1753893040421,-460.0,0.00020316,2]
[376204528,1753893040432,-460.0,0.00020316,2]
[376204531,1753893040443,-460.0,0.00020316,2]
[376204535,1753893040454,-460.0,0.00020316,2]
[376204537,1753893040465,-460.0,0.00020316,2]
[376204539,1753893040476,-460.0,0.00020316,2]
[376204542,1753893040487,-460.0,0.00020316,2]
[376204545,1753893040497,-460.0,0.00020316,2]
[376204548,1753893040508,-460.0,0.00020316,2]
[376204551,1753893040519,-460.0,0.00020316,2]
[376204553,1753893040529,-460.0,0.00020316,2]
[376204555,1753893040539,-460.0,0.00020316,2]
[376204557,1753893040550,-151.0,0.00020316,2]
[376204559,1753893040561,-151.0,0.00020316,2]
[376204562,1753893040572,-151.0,0.00020316,2]
[376204564,1753893040583,-557.32636232,0.00020316,2]
[376204566,1753893040593,-460.0,0.00020316,2]
[376204568,1753893040604,-500.0,0.00020316,2]
[376204570,1753893040615,-460.0,0.00020316,2]
[376204572,1753893040626,-460.0,0.00020316,2]
[376204574,1753893040637,-460.0,0.00020316,2]
[376204577,1753893040647,-460.0,0.00020316,2]
[376204579,1753893040658,-460.0,0.00020316,2]
[376204581,1753893040670,-460.0,0.00020316,2]
[376204583,1753893040681,-460.0,0.00020316,2]
[376204585,1753893040694,-460.0,0.00020316,2]
[376204587,1753893040704,-328.56106037,0.00020316,2]
[376204590,1753893040715,-460.0,0.00020316,2]
[376204591,1753893040727,-460.0,0.00020316,2]
[376204592,1753893040737,-460.0,0.00020316,2]
[376204593,1753893040746,-460.0,0.00020316,2]
[376204594,1753893040756,-463.34187825,0.00020316,2]
[376204595,1753893040766,-460.0,0.00020316,2]
[376204596,1753893040776,-460.0,0.00020316,2]
[376204597,1753893040785,-460.0,0.00020316,2]
[376204598,1753893040794,-460.0,0.00020316,2]
[376204599,1753893040803,-460.0,0.00020316,2]
[376204600,1753893040812,-460.0,0.00020316,2]
[376204601,1753893040822,-460.0,0.00020316,2]
[376204602,1753893040944,-460.0,0.00020316,2]
[376204603,1753893040977,-460.0,0.00020316,2]
[376204604,1753893040988,-460.0,0.00020316,2]
[376204605,1753893040998,-460.0,0.00020316,2]
[376204606,1753893041008,-460.0,0.00020316,2]
[376204607,1753893041017,-460.0,0.00020316,2]
[376204608,1753893041026,-460.0,0.00020316,2]
[376204609,1753893041035,-460.0,0.00020316,2]
[376204610,1753893041044,-460.0,0.00020317,2]
[376204611,1753893041053,-461.62183362,0.00020317,2]
[376204612,1753893041062,-460.0,0.00020317,2]
[376204613,1753893041071,-460.0,0.00020317,2]
[376204614,1753893041080,-460.0,0.00020317,2]
[376204615,1753893041089,-460.0,0.00020317,2]
[376204616,1753893041097,-500.0,0.00020317,2]
[376204617,1753893041106,-500.0,0.00020317,2]
[376204618,1753893041118,-500.0,0.00020317,2]
[376204619,1753893041126,-460.0,0.00020317,2]
[376204620,1753893041135,-460.0,0.00020317,2]
[376204621,1753893041145,-460.0,0.00020318,2]
[376204622,1753893041154,-460.0,0.00020318,2]
[376204623,1753893041163,-460.0,0.00020318,2]
[376204624,1753893041172,-460.0,0.00020318,2]
[376204625,1753893041181,-489.45452389,0.00020318,2]
[376204626,1753893041191,-460.0,0.00020318,2]
[376204627,1753893041199,-460.0,0.00020318,2]
[376204628,1753893041208,-460.0,0.00020318,2]
[376204630,1753893041217,-460.0,0.00020318,2]
[376204632,1753893041226,-460.0,0.00020318,2]
[376204633,1753893041236,-460.0,0.00020318,2]
[376204634,1753893041248,-460.0,0.00020318,2]
[376204635,1753893041257,-460.0,0.00020318,2]
[376204636,1753893041266,-460.0,0.00020318,2]
[376204637,1753893041275,-460.0,0.00020318,2]
[376204638,1753893041285,-460.0,0.00020318,2]
[376204639,1753893041294,-460.0,0.00020318,2]
[376204640,1753893041303,-460.97223986,0.00020318,2]
[376204641,1753893041312,-293.53830763,0.00020318,2]
[376204642,1753893041321,-461.26519652,0.00020318,2]
[376204644,1753893041330,-460.0,0.00020318,2]
[376204646,1753893041339,-460.0,0.00020318,2]
[376204648,1753893041349,-465.01052589,0.00020318,2]
[376204650,1753893041359,-460.0,0.00020318,2]
[376204652,1753893041371,-460.0,0.00020318,2]
[376204654,1753893041380,-460.0,0.00020318,2]
[376204656,1753893041389,-460.0,0.00020318,2]
[376204657,1753893041399,-460.0,0.00020318,2]
[376204660,1753893041408,-460.0,0.00020318,2]
[376204662,1753893041418,-460.0,0.00020318,2]
[376204664,1753893041427,-460.0,0.00020318,2]
[376204666,1753893041437,-460.0,0.00020318,2]
[376204668,1753893041446,-460.0,0.00020318,2]
[376204670,1753893041455,-460.0,0.00020318,2]
[376204672,1753893041465,-2645.19,0.00020318,2]
[376204674,1753893041474,-460.0,0.00020318,2]
[376204676,1753893041483,-500.0,0.00020319,2]
[376204678,1753893041493,-492.7787231,0.0002032,2]
[376204680,1753893041502,-500.0,0.0002032,2]
[376204682,1753893041512,-460.0,0.0002032,2]
[376204684,1753893041521,-690.51,0.0002032,2]
[376204686,1753893041531,-611.94,0.00020321,2]
[376204687,1753893041540,-460.0,0.00020321,2]
[376204690,1753893041550,-243.10226614,0.00020321,2]
[376204692,1753893041559,-231.43925844,0.00020371,2]
[376204694,1753893041569,-160.0,0.00020371,2]
[376204696,1753893041578,-160.0,0.00020371,2]
[376204698,1753893041587,-160.0,0.00020371,2]
[376204700,1753893041596,-160.0,0.00020371,2]
[376204701,1753893041606,-160.0,0.00020371,2]
[376204703,1753893041619,-214.95885286,0.00020371,2]
[376204705,1753893041629,-500.0,0.00020373,2]
[376204708,1753893041639,-500.0,0.00020373,2]
[376204709,1753893041649,-841.2246943,0.0002043,2]
[376204712,1753893041658,-160.0,0.0002043,2]
[376204713,1753893041667,-460.59675358,0.0002043,2]
[376204714,1753893041677,-12639.5777639,0.0002043,2]
[376204715,1753893041690,-312.16666667,0.0002043,2]
[376204716,1753893041699,-526.76118213,0.0002043,2]
[376204717,1753893041708,-216.14611358,0.0002043,2]
[376204718,1753893041718,-460.0,0.00020547,2]
[376204719,1753893041727,-500.0,0.00020573,2]
[376204720,1753893041737,-500.0,0.00020573,2]
[376204721,1753893041746,-500.0,0.00020573,2]
[376204722,1753893041756,-500.0,0.00020573,2]
[376204723,1753893041766,-500.0,0.00020573,2]
[376204724,1753893041775,-460.0,0.00020588,2]
[376204725,1753893041784,-460.0,0.00020588,2]
[376204726,1753893041794,-460.0,0.00020588,2]
[376204727,1753893041803,-460.0,0.00020588,2]
[376204728,1753893041812,-460.0,0.00020588,2]
[376204729,1753893041821,-460.0,0.00020588,2]
[376204730,1753893041830,-496.13743668,0.00020588,2]
[376204731,1753893041840,-460.0,0.00020588,2]
[376204732,1753893041848,-460.0,0.00020588,2]
[376204733,1753893041858,-460.0,0.00020588,2]
[376204734,1753893041869,-460.0,0.00020588,2]
[376204735,1753893041879,-613.65,0.00020588,2]
[376204736,1753893041888,-2318.71,0.00020588,2]
[376204737,1753893041897,-460.0,0.00020588,2]
[376204738,1753893041906,-151.0,0.00020589,2]
[376204739,1753893041915,-151.0,0.00020589,2]
[376204740,1753893041924,-521.0,0.00020589,2]
[376204741,1753893041933,-197.26163212,0.00020589,2]
[376204742,1753893041942,-151.0,0.00020589,2]
[376204743,1753893041952,-460.0,0.00020589,2]
[376204744,1753893041961,-460.0,0.00020589,2]
[376204746,1753893041970,-460.0,0.00020589,2]
[376204748,1753893041979,-460.0,0.00020589,2]
[376204750,1753893041988,-460.0,0.00020589,2]
[376204752,1753893041997,-460.0,0.00020589,2]
[376204753,1753893042006,-460.0,0.00020589,2]
[376204756,1753893042016,-460.0,0.00020589,2]
[376204757,1753893042025,-460.0,0.00020589,2]
[376204759,1753893042034,-460.0,0.00020589,2]
[376204761,1753893042043,-460.0,0.00020589,2]
[376204763,1753893042053,-460.0,0.00020589,2]
[376204765,1753893042062,-460.0,0.00020589,2]
[376204767,1753893042071,-460.0,0.00020589,2]
[376204769,1753893042081,-460.0,0.00020589,2]
[376204771,1753893042091,-460.0,0.00020589,2]
[376204773,1753893042101,-460.0,0.00020589,2]
[376204775,1753893042111,-460.0,0.00020589,2]
[376204777,1753893042121,-224.46698784,0.00020589,2]
[376204782,1753893042243,-599.08301216,0.00020589,2]
[376204783,1753893042252,-460.0,0.00020589,2]
[376204785,1753893042262,-460.0,0.00020589,2]
[376204787,1753893042271,-460.0,0.00020589,2]
[376204789,1753893042281,-1352.64,0.00020589,2]
[376204791,1753893042290,-460.0,0.00020589,2]
[376204793,1753893042300,-460.0,0.00020589,2]
[376204795,1753893042309,-460.0,0.00020589,2]
[376204797,1753893042318,-460.0,0.00020589,2]
[376204799,1753893042327,-460.0,0.00020589,2]
[376204801,1753893042336,-460.0,0.00020589,2]
[376204803,1753893042346,-460.0,0.00020589,2]
[376204805,1753893042355,-460.0,0.00020589,2]
[376204807,1753893042366,-460.0,0.00020589,2]
[376204810,1753893042376,-471.18258806,0.00020589,2]
[376204812,1753893042386,-460.0,0.00020589,2]
[376204814,1753893042395,-1061.64,0.00020589,2]
[376204816,1753893042405,-460.0,0.00020589,2]
[376204818,1753893042414,-151.0,0.00020589,2]
[376204820,1753893042423,-460.0,0.00020589,2]
[376204822,1753893042433,-460.0,0.00020589,2]
[376204824,1753893042442,-460.0,0.00020589,2]
[376204825,1753893042453,-460.0,0.00020589,2]
[376204828,1753893042463,-460.0,0.00020589,2]
[376204830,1753893042471,-460.0,0.00020589,2]
[376204832,1753893042481,-460.0,0.00020589,2]
[376204833,1753893042490,-460.0,0.00020589,2]
[376204836,1753893042500,-460.0,0.00020589,2]
[376204838,1753893042510,-542.97,0.00020589,2]
[376204840,1753893042519,-321.98135094,0.00020589,2]
[376204842,1753893042533,-460.0,0.00020589,2]
[376204844,1753893042542,-460.0,0.00020589,2]
[376204846,1753893042551,-460.0,0.00020589,2]
[376204848,1753893042561,-460.0,0.00020589,2]
[376204850,1753893042570,-460.0,0.00020589,2]
[376204852,1753893042580,-460.0,0.00020589,2]
[376204854,1753893042589,-460.0,0.00020589,2]
[376204855,1753893042598,-460.0,0.00020589,2]
[376204856,1753893042608,-460.0,0.00020589,2]
[376204857,1753893042619,-460.0,0.00020589,2]
[376204858,1753893042629,-460.0,0.00020589,2]
[376204859,1753893042639,-460.0,0.00020589,2]
[376204860,1753893042651,-465.81467822,0.00020589,2]
[376204861,1753893042660,-460.0,0.00020589,2]
[376204862,1753893042670,-460.0,0.00020589,2]
[376204863,1753893042680,-460.0,0.00020589,2]
[376204864,1753893042695,-153.04704999,0.0002059,2]
[376204865,1753893042704,-151.0,0.0002059,2]
[376204867,1753893042714,-151.0,0.0002059,2]
[376204869,1753893042723,-460.0,0.0002059,2]
[376204871,1753893042736,-460.0,0.0002059,2]
[376204874,1753893042750,-460.0,0.0002059,2]
[376204875,1753893042760,-460.0,0.0002059,2]
[376204876,1753893042770,-460.0,0.0002059,2]
[376204877,1753893042779,-460.0,0.0002059,2]
[376204878,1753893042788,-460.0,0.0002059,2]
[376204880,1753893042798,-460.0,0.0002059,2]
[376204881,1753893042807,-460.0,0.0002059,2]
[376204882,1753893042816,-460.0,0.0002059,2]
[376204883,1753893042825,-460.0,0.0002059,2]
[376204884,1753893042835,-460.0,0.0002059,2]
[376204885,1753893042844,-460.0,0.0002059,2]
[376204886,1753893042854,-460.0,0.0002059,2]
[376204887,1753893042865,-460.0,0.0002059,2]
[376204888,1753893042874,-460.0,0.0002059,2]
[376204889,1753893042884,-925.4,0.0002059,2]
[376204890,1753893042894,-460.0,0.0002059,2]
[376204891,1753893042903,-460.0,0.0002059,2]
[376204892,1753893042913,-460.0,0.0002059,2]
[376204893,1753893042924,-460.0,0.0002059,2]
[376204894,1753893042939,-529.8861233,0.0002059,2]
[376204895,1753893042953,-460.0,0.0002059,2]
[376204896,1753893042962,-460.0,0.0002059,2]
[376204897,1753893042972,-460.0,0.0002059,2]
[376204898,1753893042981,-460.0,0.0002059,2]
[376204899,1753893042990,-460.0,0.0002059,2]
[376204900,1753893043001,-460.0,0.0002059,2]
[376204902,1753893043010,-460.0,0.0002059,2]
[376204904,1753893043021,-460.0,0.0002059,2]
[376204906,1753893043030,-460.0,0.0002059,2]
[376204908,1753893043039,-460.0,0.0002059,2]
[376204910,1753893043049,-402.40635,0.0002059,2]
[376204927,1753893043252,-460.0,0.00019999,2]
[376204929,1753893043262,-231.43925844,0.00020371,2]
[376204931,1753893043272,-627.41,0.00020579,10]
[376204933,1753893043281,-57.59365,0.0002059,2]
[376204936,1753893043291,-460.0,0.0002059,2]
[376204938,1753893043300,-15.45596695,0.0002059,2]
[376204941,1753893043312,-444.54403305,0.0002059,2]
[376204944,1753893043322,-425.45596695,0.0002059,2]
[376204947,1753893043334,-34.54403305,0.0002059,2]
[376204949,1753893043343,-460.0,0.0002059,2]
[376204951,1753893043352,-460.0,0.0002059,2]
[376204953,1753893043363,-460.0,0.0002059,2]
[376204955,1753893043372,-460.0,0.0002059,2]
[376204957,1753893043381,-460.0,0.0002059,2]
[376204959,1753893043391,-460.0,0.0002059,2]
[376204961,1753893043400,-151.0,0.0002059,2]
[376204963,1753893043409,-460.0,0.0002059,2]
[376204965,1753893043419,-460.0,0.0002059,2]
[376204967,1753893043428,-460.0,0.0002059,2]
[376204969,1753893043437,-460.0,0.0002059,2]
[376204971,1753893043447,-460.0,0.0002059,2]
[376204973,1753893043456,-460.0,0.0002059,2]
[376204975,1753893043466,-215.86964149,0.0002059,2]
[376204977,1753893043478,-244.13035851,0.0002059,2]
[376204979,1753893043488,-460.0,0.0002059,2]
[376204981,1753893043497,-460.0,0.0002059,2]
[376204983,1753893043507,-460.0,0.0002059,2]
[376204985,1753893043516,-460.0,0.0002059,2]
[376204987,1753893043525,-460.0,0.0002059,2]
[376204989,1753893043534,-460.0,0.0002059,2]
[376204991,1753893043543,-460.0,0.00020591,2]
[376204992,1753893043553,-460.0,0.00020591,2]
[376204994,1753893043563,-460.0,0.00020591,2]
[376204996,1753893043571,-460.0,0.00020592,2]
[376204998,1753893043581,-460.0,0.00020592,2]
[376205001,1753893043591,-460.0,0.00020592,2]
[376205003,1753893043600,-467.18913486,0.00020592,2]
[376205005,1753893043609,-460.0,0.00020592,2]
[376205007,1753893043620,-460.0,0.00020592,2]
[376205009,1753893043629,-192.027042,0.00020592,2]
[376205011,1753893043638,-463.71018066,0.00020592,2]
[376205012,1753893043647,-177.28220185,0.00020592,2]
[376205161,1753893046099,-421.92818453,0.00019999,2]
[376205163,1753893046116,-38.07181547,0.00019999,2]
[376205165,1753893046126,-220.60052629,0.00020314,2]
[376205175,1753893046211,-239.39947371,0.00020314,2]
[376205177,1753893046221,-460.0,0.00020315,2]
[376205180,1753893046231,-1026.55,0.00020316,2]
[376205182,1753893046241,-112.19737206,0.00020588,2]
[376205185,1753893046266,-460.0,0.00020315,2]
[376205212,1753893046452,-347.80262794,0.00020588,2]
[376205214,1753893046464,-460.0,0.00020589,2]
[376205217,1753893046473,-282.71779815,0.00020592,2]
[376205219,1753893046483,-460.0,0.00020592,2]
[376205221,1753893046492,-460.0,0.00020592,2]
[376205223,1753893046502,-460.0,0.00020592,2]
[376205225,1753893046512,-2645.19,0.00020592,2]
[376205227,1753893046521,-151.0,0.00020592,2]
[376205229,1753893046531,-460.0,0.00020592,2]
[376205231,1753893046541,-604.08467384,0.00020594,2]
[376208355,1753893127781,170.179228,0.00013699,2]
[376208362,1753893451426,174.0,0.00026,120]
[376208367,1753893703090,460.0,0.00026027,120]
[376208375,1753893997386,2074.37507991,0.0001882,2]
[376208414,1753894232542,-181.539139,0.00019178,2]
[376208415,1753894232552,-198.86797636,0.00019896,2]
[376208454,1753894238576,-154.96565691,0.00019896,2]
[376208456,1753894238586,-902.0,0.00019972,2]
[376208457,1753894238596,-500.0,0.00019973,2]
[376208459,1753894238606,-500.0,0.00019973,2]
[376208461,1753894238615,-500.0,0.00019973,2]
[376208463,1753894238625,-118.07953018,0.00019993,2]
[376208465,1753894238636,-181.92046982,0.00019993,2]
[376208467,1753894238645,-152.0,0.00019993,2]
[376208469,1753894238655,-300.0,0.00019993,2]
[376208471,1753894238664,-300.0,0.00019993,2]
[376208472,1753894238674,-300.0,0.00019993,2]
[376208474,1753894238683,-688.46947976,0.00019994,2]
[376208477,1753894238705,-511.53052024,0.00019994,2]
[376208479,1753894238719,-460.0,0.00019994,2]
[376208482,1753894238732,-460.0,0.00019994,2]
[376208484,1753894238744,-460.0,0.00019994,2]
[376208486,1753894238755,-460.0,0.00019994,2]
[376208488,1753894238766,-32800.8627545,0.00019995,2]
[376208490,1753894238779,-460.0,0.00019996,2]
[376208492,1753894238791,-460.0,0.00019996,2]
[376208494,1753894238804,-460.0,0.00019996,2]
[376208496,1753894238816,-227.43050314,0.00019996,2]
[376208499,1753894238839,-460.0,0.00019996,2]
[376208502,1753894238855,-460.0,0.00019996,2]
[376208504,1753894238869,-460.0,0.00019996,2]
[376208506,1753894238884,-460.0,0.00019996,2]
[376208509,1753894238898,-460.0,0.00019996,2]
[376208511,1753894238913,-460.0,0.00019996,2]
[376208513,1753894238926,-460.0,0.00019996,2]
[376208515,1753894238938,-460.0,0.00019996,2]
[376208517,1753894238950,-460.0,0.00019996,2]
[376208520,1753894238964,-460.0,0.00019996,2]
[376208522,1753894238978,-460.0,0.00019996,2]
[376208524,1753894238991,-460.0,0.00019996,2]
[376208526,1753894239005,-460.0,0.00019996,2]
[376208529,1753894239019,-460.0,0.00019996,2]
[376208531,1753894239032,-460.0,0.00019996,2]
[376208533,1753894239047,-460.0,0.00019996,2]
[376208535,1753894239059,-462.81218085,0.00019996,2]
[376208537,1753894239071,-460.0,0.00019996,2]
[376208539,1753894239083,-460.0,0.00019996,2]
[376208541,1753894239095,-460.0,0.00019996,2]
[376208543,1753894239106,-434.86743427,0.00019996,2]
[376208545,1753894239118,-415.59073771,0.00019996,2]
[376208547,1753894239131,-463.81796763,0.00019996,2]
[376208550,1753894239143,-460.0,0.00019996,2]
[376208552,1753894239156,-463.58872839,0.00019996,2]
[376208554,1753894239169,-460.0,0.00019996,2]
[376208556,1753894239182,-460.0,0.00019996,2]